bitfinex/quotes_BTCUSD_20251201
["timestamp","ask_amount","ask_price","bid_price","bid_amount"]
[1764558267785,0.23026618,86856.0,86855.0,0.003]
[1764558268028,0.23026618,86856.0,86854.0,0.11902298]
[1764558268228,0.06112,86855.0,86854.0,0.11902298]
[1764558268637,0.14483,86855.0,86854.0,0.11902298]
[1764558268839,0.14483,86855.0,86838.0,0.323]
[1764558268840,0.01151436,86848.0,86844.0,0.11902298]
[1764558268989,0.01151383,86852.0,86849.0,0.09734812]
[1764558269193,0.04423,86845.0,86844.0,0.11902298]
[1764558270295,0.0115141,86850.0,86844.0,0.13053788]
[1764558270296,0.0115145,86847.0,86844.0,0.13053788]
[1764558270718,0.0004108,86845.0,86844.0,0.11902298]
[1764558270878,0.0004108,86845.0,86844.0,0.13047006]
[1764558271084,0.0004108,86845.0,86844.0,0.42448806]
[1764558271299,0.0004108,86845.0,86844.0,0.42148806]
[1764558271708,0.0004108,86845.0,86844.0,0.19419006]
[1764558272069,0.0004108,86845.0,86844.0,0.19119006]
[1764558272341,0.0004108,86845.0,86844.0,0.19419006]
[1764558273047,0.0004108,86845.0,86844.0,0.42448806]
[1764558273338,0.0004108,86845.0,86844.0,0.49488806]
[1764558280798,0.0004108,86845.0,86844.0,1.32574106]
[1764558281098,0.0004108,86845.0,86844.0,0.80476006]
[1764558281248,0.0004108,86845.0,86844.0,0.62271506]
[1764558281446,0.0004108,86845.0,86844.0,0.89729706]
[1764558281662,0.0004108,86845.0,86844.0,0.94284106]
[1764558281888,0.0004108,86845.0,86844.0,0.86984106]
[1764558282090,0.0004108,86845.0,86844.0,1.15156606]
[1764558282284,0.0004108,86845.0,86844.0,0.50220806]
[1764558282540,0.0004108,86845.0,86844.0,1.06696906]
[1764558282838,0.0004108,86845.0,86844.0,1.05507906]
[1764558283387,0.0004108,86845.0,86844.0,0.42448806]
[1764558283586,0.0004108,86845.0,86844.0,0.43180806]
[1764558283809,0.0004108,86845.0,86844.0,0.49828806]
[1764558285586,0.0004108,86845.0,86844.0,0.43180806]
[1764558285794,0.0004108,86845.0,86844.0,0.13347006]
[1764558285795,0.23070615,86845.0,86844.0,0.13347006]
[1764558286120,0.0615308,86845.0,86844.0,0.13347006]
[1764558286496,0.0615308,86845.0,86844.0,0.13047006]
[1764558286932,0.0615308,86845.0,86844.0,0.22881818]
[1764558287276,0.0004108,86845.0,86844.0,0.22781818]
[1764558289327,0.0004108,86845.0,86844.0,0.28493818]
[1764558289547,0.0004108,86845.0,86844.0,0.22781818]
[1764558290386,0.0004108,86845.0,86844.0,0.22981818]
[1764558290540,0.0004108,86845.0,86844.0,0.22781818]
[1764558290934,0.0004108,86845.0,86844.0,0.28693818]
[1764558291590,0.0587608,86845.0,86844.0,0.13247006]
[1764558291890,0.1459008,86845.0,86844.0,0.13247006]
[1764558292664,0.1459008,86845.0,86835.0,0.01151609]
[1764558292665,0.01151543,86840.0,86835.0,0.14198615]
[1764558292865,0.2303187,86837.0,86835.0,0.13047006]
[1764558293089,0.04315,86866.0,86852.0,0.01151383]
[1764558293338,0.01151238,86863.0,86853.0,0.23027414]
[1764558293552,0.08714,86860.0,86854.0,0.01609754]
[1764558293755,0.01151251,86862.0,86849.0,0.14198429]
[1764558293889,0.23024339,86865.0,86845.0,0.01151476]
[1764558293890,0.05791,86850.0,86845.0,0.01151476]
[1764558294080,0.23025424,86861.0,86850.0,0.0115141]
[1764558294280,0.01151304,86858.0,86852.0,0.24278931]
[1764558294517,0.24176665,86861.0,86852.0,0.24178931]
[1764558294706,0.01151291,86859.0,86852.0,0.24178931]
[1764558295324,0.08714,86862.0,86852.0,0.24178931]
[1764558296036,0.00111835,86855.0,86854.0,0.23027149]
[1764558296243,0.00011835,86855.0,86854.0,0.23027149]
[1764558296408,0.00011835,86855.0,86854.0,0.28739149]
[1764558296817,0.00011835,86855.0,86854.0,0.23027149]
[1764558297596,0.00011835,86855.0,86854.0,0.23127149]
[1764558298174,0.14560835,86855.0,86854.0,0.001]
[1764558298524,0.16942107,86855.0,86854.0,0.001]
[1764558299126,0.1808131,86855.0,86854.0,0.001]
[1764558299325,0.0115145,86847.0,86843.0,0.01151503]
[1764558299544,0.0003792,86844.0,86843.0,0.01151503]
[1764558299771,0.1018792,86844.0,86843.0,0.01151503]
[1764558300133,0.1018792,86844.0,86842.0,0.09734812]
[1764558300358,0.14505,86843.0,86841.0,0.23030596]
[1764558300522,0.05835,86842.0,86841.0,0.23030596]
[1764558301179,0.14549,86842.0,86841.0,0.23030596]
[1764558301384,0.14549,86842.0,86840.0,0.13047006]
[1764558301616,0.13199,86841.0,86840.0,0.13047006]
[1764558301916,0.01151423,86849.0,86840.0,0.13047006]
[1764558301917,0.08714,86859.0,86851.0,0.01151397]
[1764558302053,0.05835,86852.0,86850.0,0.13047006]
[1764558302427,0.13199,86851.0,86850.0,0.13047006]
[1764558303199,0.13199,86851.0,86850.0,0.13147006]
[1764558303393,0.13199,86851.0,86850.0,0.13047006]
[1764558303757,0.14350397,86851.0,86848.0,0.01151436]
[1764558303967,0.23028739,86848.0,86844.0,0.13047006]
[1764558304162,0.05809,86845.0,86844.0,0.13047006]
[1764558305406,0.14523,86845.0,86844.0,0.13047006]
[1764558306378,0.05809,86845.0,86844.0,0.36176806]
[1764558306582,0.08714,86852.0,86848.0,0.01151436]
[1764558306777,0.08714,86852.0,86849.0,0.23028474]
[1764558307003,0.00011835,86855.0,86852.0,0.01151383]
[1764558307202,0.00732,86854.0,86853.0,0.23027414]
[1764558307377,0.00732,86854.0,86852.0,0.24178812]
[1764558307577,0.00011835,86855.0,86854.0,0.23027149]
[1764558311256,0.00011835,86855.0,86852.0,0.01151383]
[1764558311582,0.00011835,86855.0,86854.0,0.23027149]
[1764558312985,0.00011835,86855.0,86854.0,0.41786155]
[1764558313270,0.00084506,86855.0,86854.0,0.41886155]
[1764558314073,0.00084506,86855.0,86854.0,0.36174155]
[1764558315836,0.00084506,86855.0,86854.0,0.41786155]
[1764558316046,0.00084506,86855.0,86854.0,0.36174155]
[1764558316742,0.00084506,86855.0,86854.0,0.41810155]
[1764558317585,0.00084506,86855.0,86854.0,0.36174155]
[1764558317965,0.00084506,86855.0,86854.0,0.47867155]
[1764558318167,0.00084506,86855.0,86854.0,0.41810155]
[1764558318370,0.00084506,86855.0,86854.0,0.13147006]
[1764558319519,0.00084506,86855.0,86854.0,0.18783006]
[1764558320013,0.00084506,86855.0,86854.0,0.26367009]
[1764558320232,0.00084506,86855.0,86854.0,0.24840006]
[1764558321281,0.00084506,86855.0,86854.0,0.13147006]
[1764558322123,0.00084506,86855.0,86854.0,0.18783006]
[1764558322959,0.00084506,86855.0,86854.0,0.58666996]
[1764558323162,0.00084506,86855.0,86854.0,2.08294905]
[1764558323424,0.00084506,86855.0,86854.0,0.79958406]
[1764558323630,0.00084506,86855.0,86854.0,1.45019306]
[1764558323827,0.02308601,86880.0,86855.0,0.173468]
[1764558324031,0.0004,86890.0,86889.0,0.23017873]
[1764558324267,0.00051835,86890.0,86889.0,0.23017873]
[1764558324503,0.00051835,86890.0,86887.0,0.24169128]
[1764558324742,0.00051835,86890.0,86885.0,0.13047006]
[1764558324743,0.09794,86888.0,86885.0,0.13047006]
[1764558325185,0.05432,86886.0,86885.0,0.13047006]
[1764558325381,0.01151012,86880.0,86874.0,0.13047006]
[1764558325521,0.06748012,86880.0,86875.0,0.01151079]
[1764558325704,0.06748012,86880.0,86874.0,0.13047006]
[1764558325705,0.05594,86875.0,86874.0,0.13047006]
[1764558326141,0.13795,86875.0,86874.0,0.13047006]
[1764558327395,0.24174816,86868.0,86865.0,0.09734812]
[1764558327607,0.24175444,86865.0,86855.0,0.37225233]
[1764558327826,0.01151277,86860.0,86855.0,0.13047006]
[1764558328022,0.23026088,86858.0,86855.0,0.13047006]
[1764558328176,0.05599,86856.0,86855.0,0.13047006]
[1764558328380,0.0115141,86850.0,86847.0,0.09734812]
[1764558328578,0.09794,86848.0,86847.0,0.09734812]
[1764558328781,0.09794,86848.0,86846.0,0.13047006]
[1764558328988,0.138,86847.0,86846.0,0.13058841]
[1764558329502,0.05599,86847.0,86846.0,0.13058841]
[1764558329713,0.31960821,86852.0,86846.0,0.13058841]
[1764558329714,0.00732,86852.0,86847.0,0.001]
[1764558329890,0.01151397,86851.0,86847.0,0.001]
[1764558330090,0.01883383,86852.0,86847.0,0.0125145]
[1764558330281,0.04195,86854.0,86849.0,0.01151423]
[1764558330488,0.04927,86854.0,86851.0,0.01151397]
[1764558330690,0.04927,86854.0,86852.0,0.23027679]
[1764558330956,0.04927,86854.0,86851.0,0.01151397]
[1764558331126,0.04927,86854.0,86852.0,0.23027679]
[1764558331507,0.04927,86854.0,86851.0,0.01151397]
[1764558331711,0.04927,86854.0,86852.0,0.23027679]
[1764558332306,0.04927,86854.0,86851.0,0.01151397]
[1764558333154,0.05599,86852.0,86851.0,0.01151397]
[1764558333357,0.01151423,86849.0,86846.0,0.00011835]
[1764558333576,0.05599,86847.0,86846.0,0.00011835]
[1764558333761,0.08201,86851.0,86848.0,0.01151436]
[1764558333921,0.08201,86850.0,86848.0,0.01151436]
[1764558334123,0.05599,86849.0,86848.0,0.01151436]
[1764558334327,0.04927,86854.0,86851.0,0.24179225]
[1764558334769,0.04195,86854.0,86853.0,0.23027414]
[1764558335142,0.08201,86860.0,86857.0,0.01151317]
[1764558335143,0.04195,86859.0,86857.0,0.01151317]
[1764558335663,0.04195,86859.0,86855.0,0.23026863]
[1764558336129,0.01883304,86858.0,86854.0,0.01151357]
[1764558336330,0.00732,86858.0,86855.0,0.23026883]
[1764558336591,0.00732,86858.0,86854.0,0.01151357]
[1764558336827,0.00732,86858.0,86854.0,0.24178496]
[1764558337012,0.00732,86858.0,86855.0,0.24177969]
[1764558337420,0.00732,86858.0,86857.0,0.001]
[1764558337622,0.01151317,86857.0,86854.0,0.01151357]
[1764558337795,0.00732,86858.0,86855.0,0.01151344]
[1764558338457,0.00732,86858.0,86857.0,0.001]
[1764558338746,0.23758088,86858.0,86855.0,0.01151344]
[1764558338949,0.05346291,86859.0,86855.0,0.01151344]
[1764558339912,0.01151344,86855.0,86851.0,0.13047006]
[1764558340119,0.04195,86859.0,86854.0,0.01151357]
[1764558340317,0.05346291,86859.0,86856.0,0.0115133]
[1764558340755,0.01151304,86858.0,86855.0,0.002]
[1764558341180,0.24177392,86858.0,86851.0,0.37226311]
[1764558341338,0.04195,86859.0,86856.0,0.001]
[1764558341539,0.05346291,86859.0,86856.0,0.001]
[1764558341764,0.28372311,86859.0,86855.0,0.01151344]
[1764558341938,0.05599,86856.0,86851.0,0.14198403]
[1764558342144,0.241777,86857.0,86851.0,0.14198403]
[1764558342145,0.241777,86857.0,86852.0,0.01151383]
[1764558342513,0.05599,86853.0,86852.0,0.01151383]
[1764558342918,0.05599,86853.0,86852.0,0.2417886]
[1764558343784,0.138,86853.0,86851.0,0.13047006]
[1764558343983,0.138,86853.0,86827.0,0.23034257]
[1764558343984,0.24179996,86849.0,86841.0,0.13047006]
[1764558344214,0.05599,86847.0,86844.0,0.0115149]
[1764558344586,0.138,86847.0,86844.0,0.0115149]
[1764558345285,0.138,86847.0,86846.0,0.00211835]
[1764558346485,0.138,86847.0,86846.0,0.00011835]
[1764558346922,0.138,86847.0,86846.0,0.00311835]
[1764558348175,0.00732,86858.0,86857.0,0.23026353]
[1764558348376,0.00732,86858.0,86857.0,0.36073359]
[1764558348599,0.00732,86865.0,86857.0,0.36073359]
[1764558348784,0.00732,86865.0,86858.0,0.09734812]
[1764558349196,0.09367,86859.0,86858.0,0.09734812]
[1764558349932,0.17614,86859.0,86858.0,0.09734812]
[1764558350541,0.09367,86859.0,86858.0,0.09734812]
[1764558350747,0.17614,86859.0,86858.0,0.09734812]
[1764558350942,0.09367,86859.0,86858.0,0.09734812]
[1764558351115,0.17614,86859.0,86858.0,0.09734812]
[1764558352546,0.17614,86859.0,86857.0,0.36073139]
[1764558352912,0.13419,86858.0,86857.0,0.36073139]
[1764558353291,0.05172,86858.0,86857.0,0.36073139]
[1764558353490,0.04195,86859.0,86857.0,0.36073139]
[1764558353653,0.05172,86858.0,86857.0,0.36073139]
[1764558355482,0.13419,86858.0,86857.0,0.36073139]
[1764558355882,0.05172,86858.0,86857.0,0.36073139]
[1764558356134,0.13419,86858.0,86857.0,0.36073139]
[1764558356329,0.13419,86858.0,86857.0,0.45807951]
[1764558360448,0.13419,86858.0,86857.0,0.13047006]
[1764558360651,0.13419,86858.0,86848.0,0.13047006]
[1764558360652,0.01151397,86851.0,86848.0,0.13047006]
[1764558360853,0.05172,86849.0,86848.0,0.13047006]
[1764558361253,0.13419,86849.0,86848.0,0.13047006]
[1764558362935,0.23028739,86848.0,86846.0,0.00011835]
[1764558363140,0.05172,86847.0,86846.0,0.00011835]
[1764558363352,0.13419,86847.0,86846.0,0.00011835]
[1764558363555,0.45719,86847.0,86846.0,0.00011835]
[1764558363748,0.46858203,86847.0,86846.0,0.00011835]
[1764558363952,0.01151742,86825.0,86820.0,0.01151808]
[1764558364257,0.23036166,86820.0,86819.0,0.13047006]
[1764558364384,0.28208166,86820.0,86819.0,0.04629006]
[1764558364586,0.24191242,86809.0,86793.0,0.03663]
[1764558364837,0.24191242,86809.0,86793.0,0.03702479]
[1764558364838,0.0115202,86804.0,86793.0,0.03702479]
[1764558365039,0.01152126,86796.0,86793.0,0.03702479]
[1764558365274,0.32090067,86794.0,86793.0,0.00039479]
[1764558365681,0.40337067,86794.0,86793.0,0.00039479]
[1764558366058,0.4147627,86794.0,86793.0,0.00039479]
[1764558366299,0.7377627,86794.0,86793.0,0.00439479]
[1764558366523,0.7377627,86794.0,86793.0,0.00039479]
[1764558366726,0.85146561,86794.0,86793.0,0.00039479]
[1764558366980,0.23051832,86761.0,86760.0,0.0002]
[1764558367213,0.28223832,86761.0,86760.0,0.00031841]
[1764558367419,0.36623035,86761.0,86760.0,0.00031841]
[1764558367637,0.23024529,86752.0,86751.0,0.00377412]
[1764558367848,0.32044529,86752.0,86751.0,0.00389241]
[1764558368052,0.33183732,86752.0,86751.0,0.00389241]
[1764558368927,0.33168885,86752.0,86751.0,0.00389241]
[1764558369524,0.33268885,86752.0,86751.0,0.00389241]
[1764558369740,0.33468885,86752.0,86751.0,0.00389241]
[1764558369922,0.32329682,86752.0,86751.0,0.00389241]
[1764558370157,0.33468885,86752.0,86751.0,0.00389241]
[1764558370928,0.65768885,86752.0,86751.0,0.00389241]
[1764558371543,0.65668885,86752.0,86751.0,0.00389241]
[1764558371742,0.65468885,86752.0,86751.0,0.00389241]
[1764558371929,0.65668885,86752.0,86751.0,0.00389241]
[1764558374449,0.23000141,86732.0,86731.0,0.04629006]
[1764558375000,0.23000141,86732.0,86731.0,0.04692324]
[1764558376007,0.23000141,86732.0,86731.0,0.13642703]
[1764558376207,0.23000141,86732.0,86731.0,0.04892324]
[1764558378507,0.27184141,86732.0,86731.0,0.04892324]
[1764558378939,0.27184141,86732.0,86731.0,0.13424679]
[1764558379132,0.27184141,86732.0,86731.0,0.08795673]
[1764558379277,0.0115295,86734.0,86731.0,0.08795673]
[1764558379482,0.24212019,86734.0,86731.0,0.13361361]
[1764558379836,0.24212019,86734.0,86731.0,0.13161361]
[1764558380104,0.24209319,86744.0,86733.0,0.05326]
[1764558380287,0.01152883,86739.0,86733.0,0.05326]
[1764558380513,0.03943,86732.0,86731.0,0.13261361]
[1764558380647,0.01152897,86738.0,86733.0,0.01152963]
[1764558380850,0.24210955,86738.0,86733.0,0.01152963]
[1764558381065,0.00732,86744.0,86738.0,0.23057944]
[1764558381278,0.03943,86756.0,86748.0,0.01152764]
[1764558381482,0.00732,86755.0,86749.0,0.03965]
[1764558381685,0.04138,86750.0,86748.0,0.04629006]
[1764558381902,0.27193017,86750.0,86748.0,0.04629006]
[1764558382102,0.05388,86749.0,86748.0,0.04629006]
[1764558382873,0.2305841,86737.0,86735.0,0.04629006]
[1764558383331,0.16348,86736.0,86735.0,0.04629006]
[1764558383827,0.23059805,86731.0,86725.0,0.04629006]
[1764558384185,0.36643805,86731.0,86725.0,0.04629006]
[1764558384944,0.36643805,86731.0,86711.0,0.09734812]
[1764558385193,0.37783008,86731.0,86711.0,0.09734812]
[1764558385404,0.37783008,86731.0,86730.0,0.0012]
[1764558385606,0.37783008,86731.0,86730.0,0.00186484]
[1764558385824,0.36643805,86731.0,86730.0,0.00186484]
[1764558386039,0.70083008,86731.0,86730.0,0.00086484]
[1764558386480,0.88105598,86731.0,86730.0,4.84e-06]
[1764558386711,0.23069647,86694.0,86693.0,0.04629006]
[1764558386929,0.24224887,86688.0,86684.0,0.04629006]
[1764558387150,0.01153562,86688.0,86684.0,0.04629006]
[1764558387360,0.01153535,86690.0,86685.0,0.01153602]
[1764558387631,0.01153535,86690.0,86686.0,0.01153588]
[1764558387849,0.01153548,86689.0,86685.0,0.01153602]
[1764558388065,0.23072042,86685.0,86684.0,0.04629006]
[1764558388295,0.01153628,86683.0,86680.0,0.0002]
[1764558388514,0.04065,86681.0,86680.0,0.0002]
[1764558388721,0.08091,86681.0,86680.0,0.0002]
[1764558388954,0.49139203,86681.0,86680.0,0.0002]
[1764558389165,0.48,86681.0,86680.0,0.0002]
[1764558391330,0.55391502,86681.0,86680.0,0.0002]
[1764558391537,0.23078432,86661.0,86660.0,0.0002]
[1764558391739,0.27761432,86661.0,86660.0,0.0002]
[1764558391949,0.35406432,86661.0,86660.0,0.0002]
[1764558392350,0.00732,86661.0,86660.0,0.0002]
[1764558392618,0.04758,86661.0,86660.0,0.00241822]
[1764558393038,0.00732,86661.0,86660.0,0.00241822]
[1764558393337,0.23810277,86662.0,86660.0,0.00241822]
[1764558393537,0.00732,86662.0,86660.0,0.0002]
[1764558393740,0.23810325,86662.0,86660.0,0.0002]
[1764558393976,0.23810325,86662.0,86660.0,0.0022]
[1764558394170,0.0219126,86663.0,86660.0,0.0002]
[1764558394580,0.001,86662.0,86660.0,0.0042]
[1764558395277,0.0219126,86663.0,86660.0,0.0002]
[1764558395493,0.23078165,86662.0,86660.0,0.0002]
[1764558395722,0.23078165,86662.0,86660.0,0.0042]
[1764558396253,0.03445154,86663.0,86660.0,0.0042]
[1764558396459,0.001,86663.0,86662.0,0.0519]
[1764558396657,0.04065,86702.0,86692.0,0.01153508]
[1764558396857,0.04065,86702.0,86686.0,0.01153588]
[1764558397083,0.01153429,86698.0,86686.0,0.01153588]
[1764558397284,0.01153469,86695.0,86692.0,0.09734812]
[1764558397489,0.01153602,86685.0,86672.0,0.01153775]
[1764558397685,0.01153668,86680.0,86670.0,0.0164578]
[1764558397886,0.01153628,86683.0,86682.0,0.09734812]
[1764558398091,0.24226202,86683.0,86682.0,0.09734812]
[1764558398290,0.01153695,86678.0,86675.0,0.016]
[1764558398492,0.01153668,86680.0,86675.0,0.02753735]
[1764558398666,0.01153681,86679.0,86675.0,0.02753735]
[1764558398867,0.01153588,86686.0,86675.0,0.25828425]
[1764558399110,0.01153642,86682.0,86678.0,0.00164748]
[1764558399294,0.01153642,86682.0,86672.0,0.00139518]
[1764558399295,0.23075151,86674.0,86672.0,0.00139518]
[1764558399497,0.11768,86673.0,86672.0,0.00139518]
[1764558399695,0.12907203,86673.0,86672.0,0.00139518]
[1764558400009,0.11768,86673.0,86672.0,0.00039518]
[1764558400560,0.14076601,86673.0,86672.0,0.00039518]
[1764558401118,0.04123,86673.0,86672.0,0.00039518]
[1764558401435,0.01153588,86686.0,86674.0,0.01153748]
[1764558401638,0.01153588,86686.0,86676.0,0.32809235]
[1764558401639,0.01153615,86684.0,86676.0,0.32809235]
[1764558401937,0.02418575,86687.0,86680.0,0.01153668]
[1764558402136,0.02418575,86687.0,86679.0,0.01153681]
[1764558402137,0.01153615,86684.0,86679.0,0.01153681]
[1764558402299,0.01153602,86685.0,86680.0,0.01153668]
[1764558402636,0.25490176,86687.0,86680.0,0.01153668]
[1764558402847,0.01153615,86684.0,86680.0,0.01153668]
[1764558403169,0.02418575,86687.0,86682.0,0.01153642]
[1764558403444,0.01253602,86685.0,86678.0,0.01153695]
[1764558403619,0.01253602,86685.0,86682.0,0.01153642]
[1764558403806,0.001,86685.0,86683.0,0.23072574]
[1764558404003,0.23070977,86689.0,86684.0,0.01153615]
[1764558404237,0.001,86687.0,86682.0,0.01153642]
[1764558404437,0.001,86687.0,86683.0,0.01153628]
[1764558404640,0.01153588,86686.0,86683.0,0.01153628]
[1764558405049,0.01153588,86686.0,86682.0,0.01153642]
[1764558405217,0.01153602,86685.0,86682.0,0.01153642]
[1764558405413,0.001,86687.0,86683.0,0.01153628]
[1764558405872,0.01153588,86686.0,86683.0,0.01153628]
[1764558406072,0.04065,86684.0,86682.0,0.01153642]
[1764558406637,0.01153588,86686.0,86682.0,0.01153642]
[1764558406836,0.001,86687.0,86684.0,0.01153615]
[1764558407067,0.01153548,86689.0,86684.0,0.01153615]
[1764558407233,0.001,86687.0,86684.0,0.24225679]
[1764558408059,0.001,86687.0,86685.0,0.23072042]
[1764558408264,0.001,86687.0,86686.0,0.05048]
[1764558408463,0.01153495,86693.0,86688.0,0.01153562]
[1764558408790,0.24223408,86693.0,86690.0,0.09734812]
[1764558409002,0.01153429,86698.0,86690.0,0.09734812]
[1764558409003,0.01153149,86719.0,86702.0,0.01153375]
[1764558409218,0.00961,86729.0,86710.0,0.01153269]
[1764558409219,0.03841,86715.0,86710.0,0.01153269]
[1764558409412,0.03841,86715.0,86712.0,0.01153242]
[1764558409612,0.03841,86715.0,86708.0,0.24219015]
[1764558409810,0.01891524,86723.0,86714.0,0.01153216]
[1764558410124,4.08e-05,86723.0,86721.0,0.01153123]
[1764558410373,4.08e-05,86723.0,86720.0,0.01153136]
[1764558410779,0.23062996,86719.0,86704.0,0.05111349]
[1764558410914,0.01153189,86716.0,86708.0,0.001]
[1764558411117,0.02308601,86715.0,86708.0,0.24319058]
[1764558411316,0.03763,86715.0,86710.0,0.01153269]
[1764558411512,0.01153216,86714.0,86708.0,0.001]
[1764558411804,0.03946,86709.0,86708.0,0.001]
[1764558412164,0.15228804,86709.0,86708.0,0.001]
[1764558412484,0.01153442,86697.0,86692.0,0.01153508]
[1764558412685,0.01153575,86687.0,86678.0,0.01153695]
[1764558412983,0.01153575,86687.0,86681.0,0.01153655]
[1764558413183,0.01153548,86689.0,86684.0,0.01153615]
[1764558413384,0.01153562,86688.0,86682.0,0.01153642]
[1764558413533,0.01153562,86688.0,86683.0,0.01153628]
[1764558413727,0.01153575,86687.0,86683.0,0.01153628]
[1764558413935,4.077e-05,86688.0,86685.0,0.24225644]
[1764558414141,4.077e-05,86688.0,86684.0,0.01153615]
[1764558414345,4.077e-05,86688.0,86685.0,0.01153602]
[1764558414543,0.07878077,86688.0,86685.0,0.01153602]
[1764558414956,4.077e-05,86688.0,86685.0,0.01153602]
[1764558415158,4.077e-05,86688.0,86682.0,0.01153642]
[1764558415159,0.07874,86687.0,86682.0,0.01153642]
[1764558415360,0.10182601,86687.0,86684.0,0.01153615]
[1764558415581,0.03946,86685.0,86684.0,0.01153615]
[1764558415910,4.077e-05,86688.0,86685.0,0.24225481]
[1764558416079,0.09027575,86687.0,86681.0,0.01153655]
[1764558416282,4.077e-05,86688.0,86685.0,0.004]
[1764558416450,4.077e-05,86688.0,86685.0,0.01553602]
[1764558416654,4.077e-05,86688.0,86685.0,0.01153602]
[1764558416895,4.077e-05,86688.0,86686.0,0.23071776]
[1764558417629,0.11781,86687.0,86685.0,0.01153602]
[1764558417772,0.00078,86686.0,86685.0,0.01153602]
[1764558418724,0.00078,86686.0,86685.0,0.01553602]
[1764558418924,0.00018,86686.0,86685.0,0.01153602]
[1764558419082,0.00018,86686.0,86685.0,0.01296161]
[1764558419331,0.00018,86686.0,86685.0,0.01696161]
[1764558420227,0.30963776,86686.0,86685.0,0.00542559]
[1764558420546,0.32102979,86686.0,86685.0,0.00542559]
[1764558420950,0.30963776,86686.0,86685.0,0.00542559]
[1764558421544,0.31063776,86686.0,86685.0,0.00142559]
[1764558421979,0.31263776,86686.0,86685.0,0.00142559]
[1764558422700,0.003,86686.0,86685.0,0.00142559]
[1764558423464,0.003,86686.0,86685.0,0.09877371]
[1764558424089,0.003,86686.0,86685.0,0.11490359]
[1764558424247,0.002,86686.0,86685.0,0.09877371]
[1764558424690,4.077e-05,86688.0,86686.0,0.23071776]
[1764558424894,4.077e-05,86688.0,86687.0,0.0013622]
[1764558425810,0.00104077,86688.0,86687.0,0.0013622]
[1764558426019,0.00204077,86688.0,86687.0,0.0013622]
[1764558426264,0.27102321,86688.0,86687.0,0.0013622]
[1764558426467,0.34936321,86688.0,86687.0,0.0013622]
[1764558426882,0.36075524,86688.0,86687.0,0.0013622]
[1764558427084,0.34836321,86688.0,86687.0,0.0013622]
[1764558427237,0.35975524,86688.0,86687.0,0.0013622]
[1764558427438,0.36075524,86688.0,86687.0,0.0013622]
[1764558427620,0.34936321,86688.0,86687.0,0.0013622]
[1764558427981,0.36075524,86688.0,86687.0,0.0013622]
[1764558428160,0.34936321,86688.0,86687.0,0.0013622]
[1764558428519,0.35668321,86688.0,86687.0,0.0013622]
[1764558428727,0.36807524,86688.0,86687.0,0.0013622]
[1764558431111,0.27102321,86688.0,86687.0,0.0013622]
[1764558431312,0.11905077,86688.0,86687.0,0.0013622]
[1764558431430,0.14213678,86688.0,86687.0,0.0013622]
[1764558431634,0.17800608,86688.0,86687.0,0.0013622]
[1764558432054,0.11905077,86688.0,86687.0,0.0013622]
[1764558432268,0.14213678,86688.0,86687.0,0.0013622]
[1764558432492,0.15352881,86688.0,86687.0,0.0013622]
[1764558433168,0.14213678,86688.0,86687.0,0.0013622]
[1764558433367,0.00204077,86688.0,86687.0,0.0013622]
[1764558433570,0.28248321,86688.0,86687.0,0.0013622]
[1764558433773,0.36122321,86688.0,86687.0,0.0013622]
[1764558437758,0.28248321,86688.0,86687.0,0.0013622]
[1764558438350,0.35837321,86688.0,86687.0,0.0013622]
[1764558440344,0.36976524,86688.0,86687.0,0.0013622]
[1764558441088,0.71726887,86688.0,86687.0,0.0013622]
[1764558442348,0.71526887,86688.0,86687.0,0.0013622]
[1764558442586,0.71526887,86688.0,86687.0,0.0033912]
[1764558442785,0.71626887,86688.0,86687.0,0.0033912]
[1764558443291,0.71526887,86688.0,86687.0,0.0033912]
[1764558443491,0.71626887,86688.0,86687.0,0.0033912]
[1764558443696,0.72026887,86688.0,86687.0,0.0033912]
[1764558443971,0.71626887,86688.0,86687.0,0.0033912]
[1764558444177,0.71926887,86688.0,86687.0,0.0033912]
[1764558444624,0.71926887,86688.0,86660.0,0.0002]
[1764558444625,0.23078432,86661.0,86660.0,0.0002]
[1764558444829,0.36475635,86661.0,86660.0,0.0002]
[1764558445048,0.35336432,86661.0,86660.0,0.0002]
[1764558445254,0.36475635,86661.0,86660.0,0.00105581]
[1764558445867,0.35336432,86661.0,86660.0,0.00145099]
[1764558446097,0.36475635,86661.0,86660.0,0.00145099]
[1764558446451,0.35336432,86661.0,86660.0,0.00145099]
[1764558446812,0.35436432,86661.0,86660.0,0.00645099]
[1764558446938,0.35336432,86661.0,86660.0,0.00145099]
[1764558447284,0.35336432,86661.0,86660.0,0.00545099]
[1764558449211,0.36475635,86661.0,86660.0,0.00545099]
[1764558450831,0.35336432,86661.0,86660.0,0.00145099]
[1764558451034,0.36575635,86661.0,86660.0,0.00145099]
[1764558451248,0.36475635,86661.0,86660.0,0.00145099]
[1764558452083,0.35336432,86661.0,86660.0,0.00145099]
[1764558452299,0.36575635,86661.0,86660.0,0.00145099]
[1764558454830,0.68875635,86661.0,86660.0,0.00145099]
[1764558454981,0.68775635,86661.0,86660.0,0.00145099]
[1764558455180,0.68875635,86661.0,86660.0,0.00145099]
[1764558455657,0.68775635,86661.0,86660.0,0.00145099]
[1764558456024,0.68875635,86661.0,86660.0,0.00145099]
[1764558457268,0.69707635,86661.0,86660.0,0.00145099]
[1764558457627,0.69807635,86661.0,86660.0,0.00145099]
[1764558457828,0.69607635,86661.0,86660.0,0.00145099]
[1764558458077,0.69507635,86661.0,86660.0,0.00145099]
[1764558458445,0.69607635,86661.0,86660.0,0.00145099]
[1764558458860,0.75759934,86661.0,86660.0,0.00145099]
[1764558459267,0.23083759,86641.0,86640.0,0.0002]
[1764558459480,0.26311962,86641.0,86640.0,0.00031851]
[1764558459688,0.33869962,86641.0,86640.0,0.00031851]
[1764558460359,0.40122261,86641.0,86640.0,0.00031851]
[1764558460778,0.33869962,86641.0,86640.0,0.00031851]
[1764558460994,0.33969962,86641.0,86640.0,0.00431851]
[1764558461547,0.34069962,86641.0,86640.0,0.00431851]
[1764558461752,0.32930759,86641.0,86640.0,0.00431851]
[1764558462149,0.32830759,86641.0,86640.0,0.00031851]
[1764558462474,0.34069962,86641.0,86640.0,0.00031851]
[1764558464292,0.09847,86641.0,86640.0,0.00031851]
[1764558464500,0.12155601,86641.0,86640.0,0.00031851]
[1764558464662,0.13294804,86641.0,86640.0,0.00031851]
[1764558464884,0.09847,86641.0,86640.0,0.00095268]
[1764558466417,0.12562804,86641.0,86640.0,0.00095268]
[1764558468852,0.44862804,86641.0,86640.0,0.00095268]
[1764558469060,0.42554203,86641.0,86640.0,0.00095268]
[1764558470619,0.41415,86641.0,86640.0,0.00095268]
[1764558470741,0.42147,86641.0,86640.0,0.00095268]
[1764558471143,0.09847,86641.0,86640.0,0.00095268]